fUSD/lending_fUSD_20251104
["ID","MTS","AMOUNT","RATE_DAILY","PERIOD"]
[392999399,1762215047957,-160.62729338,0.00027671,60]
[392999400,1762215047968,-150.0,0.00027671,60]
[392999401,1762215047978,-195.19136667,0.00027671,60]
[392999402,1762215047987,-150.0,0.00027671,60]
[392999403,1762215047997,-500.0,0.00027671,60]
[392999404,1762215048006,-500.0,0.00027671,2]
[392999405,1762215048016,-750.0,0.00027671,60]
[392999406,1762215048025,-500.0,0.00027671,2]
[392999407,1762215048035,-1015.0,0.00027671,14]
[392999408,1762215048044,-150.0,0.00027671,60]
[392999409,1762215048054,-216.09991313,0.00027671,60]
[392999410,1762215048063,-150.0,0.00027671,60]
[392999411,1762215048073,-500.0,0.00027671,60]
[392999412,1762215048082,-500.0,0.00027671,60]
[392999413,1762215048091,-150.0,0.00027671,60]
[392999414,1762215048101,-500.0,0.00027671,60]
[392999415,1762215048110,-249.06915017,0.00027671,60]
[392999416,1762215048120,-500.0,0.00027671,60]
[392999417,1762215048130,-200.0,0.00027671,2]
[392999418,1762215048139,-200.0,0.00027671,2]
[392999419,1762215048148,-200.0,0.00027671,2]
[392999420,1762215048158,-1000.0,0.00027671,2]
[392999421,1762215048167,-1051.32,0.00027671,30]
[392999422,1762215048177,-910.99,0.00027699,14]
[392999423,1762215048186,-2743.3398,0.00027708,2]
[392999424,1762215048197,-300.0,0.00027758,5]
[392999425,1762215048206,-20186.5676085,0.0002778,2]
[392999426,1762215048216,-151.0,0.00027781,31]
[392999427,1762215048226,-151.0,0.00027781,31]
[392999428,1762215048235,-274.575425,0.00027781,31]
[392999429,1762215048244,-151.0,0.00027781,31]
[392999430,1762215048253,-151.0,0.00027781,31]
[392999431,1762215048262,-151.0,0.00027781,31]
[392999432,1762215048271,-151.0,0.00027781,31]
[392999433,1762215048280,-151.0,0.00027781,31]
[392999434,1762215048290,-151.0,0.00027781,31]
[392999435,1762215048300,-151.0,0.00027781,31]
[392999436,1762215048309,-151.0,0.00027781,31]
[392999437,1762215048318,-151.0,0.00027781,31]
[392999438,1762215048326,-151.0,0.00027781,31]
[392999439,1762215048335,-151.0,0.00027781,31]
[392999440,1762215048344,-4583.06411,0.00027781,2]
[392999441,1762215048354,-151.0,0.0002779,31]
[392999442,1762215048363,-151.0,0.0002779,31]
[392999443,1762215048373,-151.0,0.0002779,31]
[392999444,1762215048382,-151.0,0.0002779,31]
[392999445,1762215048391,-151.0,0.0002779,31]
[392999446,1762215048400,-151.0,0.0002779,31]
[392999447,1762215048409,-151.0,0.0002779,31]
[392999448,1762215048418,-151.0,0.0002779,31]
[392999449,1762215048427,-151.0,0.0002779,14]
[392999450,1762215048436,-164.127754,0.0002779,10]
[392999451,1762215048446,-231.93324,0.0002779,31]
[392999452,1762215048456,-164.127754,0.0002779,10]
[392999453,1762215048466,-246.070478,0.0002779,31]
[392999454,1762215048475,-164.127754,0.0002779,10]
[392999455,1762215048485,-246.070478,0.0002779,31]
[392999456,1762215048494,-164.127754,0.0002779,10]
[392999457,1762215048504,-199.688269,0.0002779,31]
[392999458,1762215048513,-246.070478,0.0002779,31]
[392999459,1762215048523,-199.688269,0.0002779,31]
[392999460,1762215048532,-246.070478,0.0002779,31]
[392999461,1762215048541,-199.688269,0.0002779,31]
[392999462,1762215048550,-199.688269,0.0002779,31]
[392999463,1762215048559,-151.0,0.0002779,31]
[392999464,1762215048570,-151.0,0.0002779,15]
[392999465,1762215048579,-381.804135,0.0002779,31]
[392999466,1762215048588,-381.804135,0.0002779,31]
[392999467,1762215048599,-381.804135,0.0002779,31]
[392999468,1762215048608,-268.839956,0.0002779,31]
[392999469,1762215048617,-381.804135,0.0002779,31]
[392999470,1762215048626,-268.839956,0.0002779,31]
[392999471,1762215048635,-268.839956,0.0002779,31]
[392999472,1762215048644,-268.839956,0.0002779,31]
[392999473,1762215048653,-337.239195,0.0002779,31]
[392999474,1762215048662,-337.239195,0.0002779,31]
[392999475,1762215048670,-151.0,0.0002779,31]
[392999476,1762215048680,-337.239195,0.0002779,31]
[392999477,1762215048689,-151.0,0.0002779,31]
[392999478,1762215048698,-294.67958018,0.0002779,31]
[392999479,1762215048707,-151.0,0.0002779,31]
[392999480,1762215048721,-337.239195,0.0002779,31]
[392999481,1762215048730,-251.627393,0.0002779,31]
[392999482,1762215048740,-151.0,0.0002779,31]
[392999483,1762215048749,-151.0,0.0002779,31]
[392999484,1762215048759,-151.0,0.0002779,31]
[392999485,1762215048770,-151.0,0.0002779,31]
[392999486,1762215048779,-151.0,0.0002779,31]
[392999487,1762215048788,-152.987122,0.0002779,31]
[392999488,1762215048799,-152.987122,0.0002779,31]
[392999489,1762215048808,-152.987122,0.0002779,31]
[392999490,1762215048818,-152.987122,0.0002779,31]
[392999491,1762215048827,-151.0,0.0002779,31]
[392999492,1762215048836,-166.308992,0.0002779,31]
[392999493,1762215048846,-166.308992,0.0002779,31]
[392999494,1762215048855,-166.308992,0.0002779,31]
[392999495,1762215048865,-166.308992,0.0002779,31]
[392999496,1762215048874,-151.0,0.0002779,31]
[392999497,1762215048883,-26829.0885046,0.00027798,2]
[392999498,1762215048892,-20186.5676085,0.00027798,2]
[392999499,1762215048902,-618.59345277,0.000278,6]
[392999500,1762215048911,-1977.55,0.00027803,6]
[392999501,1762215048920,-151.0,0.00027804,31]
[392999502,1762215048930,-500.0,0.00027808,60]
[392999503,1762215048940,-150.0,0.00027808,60]
[392999504,1762215048949,-152.58559931,0.00027808,60]
[392999505,1762215048960,-500.0,0.00027808,60]
[392999506,1762215048969,-500.0,0.00027808,2]
[392999507,1762215048976,-750.0,0.00027808,60]
[392999508,1762215048986,-500.0,0.00027808,2]
[392999509,1762215048995,-1015.0,0.00027808,14]
[392999510,1762215049004,-185.66714502,0.00027808,60]
[392999511,1762215049014,-200.0,0.00027808,60]
[392999512,1762215049023,-500.0,0.00027808,60]
[392999513,1762215049033,-500.0,0.00027808,60]
[392999514,1762215049042,-500.0,0.00027808,60]
[392999515,1762215049051,-360.14815803,0.00027808,60]
[392999516,1762215049061,-151.0,0.00027808,31]
[392999517,1762215049070,-151.0,0.00027808,31]
[392999518,1762215049079,-151.0,0.00027808,31]
[392999519,1762215049088,-151.0,0.00027808,31]
[392999520,1762215049097,-151.0,0.00027808,31]
[392999521,1762215049107,-151.0,0.00027808,31]
[392999522,1762215049116,-151.0,0.00027808,31]
[392999523,1762215049125,-151.0,0.00027808,31]
[392999524,1762215049134,-151.0,0.00027808,31]
[392999525,1762215049144,-231.829585,0.00027808,31]
[392999526,1762215049153,-161.786431,0.00027808,31]
[392999527,1762215049163,-161.786431,0.00027808,31]
[392999528,1762215049172,-161.786431,0.00027808,31]
[392999529,1762215049182,-161.786431,0.00027808,31]
[392999530,1762215049191,-6622.75532274,0.0002781,2]
[392999531,1762215049200,-151.0,0.00027811,31]
[392999532,1762215049210,-151.0,0.00027811,31]
[392999533,1762215049219,-151.0,0.00027811,31]
[392999534,1762215049229,-151.0,0.00027811,31]
[392999535,1762215049238,-170.157315,0.00027811,31]
[392999536,1762215049248,-151.0,0.00027811,31]
[392999537,1762215049257,-151.0,0.00027811,31]
[392999538,1762215049266,-151.0,0.00027811,31]
[392999539,1762215049275,-151.0,0.00027811,31]
[392999540,1762215049284,-151.0,0.00027811,31]
[392999541,1762215049294,-151.0,0.00027811,31]
[392999542,1762215049303,-151.0,0.00027811,31]
[392999543,1762215049312,-151.0,0.00027811,31]
[392999544,1762215049322,-151.0,0.00027811,31]
[392999545,1762215049331,-151.0,0.00027811,31]
[392999546,1762215049340,-151.0,0.00027811,31]
[392999547,1762215049350,-151.0,0.00027811,31]
[392999548,1762215049360,-151.0,0.00027811,31]
[392999549,1762215049369,-151.0,0.00027811,31]
[392999550,1762215049378,-276.788832,0.00027811,31]
[392999551,1762215049387,-276.788832,0.00027811,31]
[392999552,1762215049396,-276.788832,0.00027811,31]
[392999553,1762215049406,-276.788832,0.00027811,31]
[392999554,1762215049415,-219.791894,0.00027811,31]
[392999555,1762215049424,-500.0,0.00027844,7]
[392999556,1762215049433,-500.0,0.00027945,60]
[392999557,1762215049443,-150.0,0.00027945,60]
[392999558,1762215049452,-500.0,0.00027945,60]
[392999559,1762215049462,-500.0,0.00027945,2]
[392999560,1762215049471,-750.0,0.00027945,60]
[392999561,1762215049480,-500.0,0.00027945,2]
[392999562,1762215049490,-1015.0,0.00027945,14]
[392999563,1762215049500,-500.0,0.00027945,60]
[392999564,1762215049509,-500.0,0.00027945,60]
[392999565,1762215049518,-500.0,0.00027945,60]
[392999566,1762215049527,-1000.0,0.00027945,2]
[392999567,1762215049536,-200.0,0.00027948,2]
[392999568,1762215049547,-200.0,0.00027948,2]
[392999569,1762215049556,-910.99,0.00027973,14]
[392999570,1762215049565,-20186.5676085,0.00028062,2]
[392999571,1762215049574,-490.523065,0.00028062,31]
[392999572,1762215049583,-174.154366,0.00028062,31]
[392999573,1762215049592,-490.523065,0.00028062,31]
[392999574,1762215049601,-174.154366,0.00028062,31]
[392999575,1762215049611,-272.779969,0.00028062,31]
[392999576,1762215049620,-490.523065,0.00028062,31]
[392999577,1762215049630,-174.154366,0.00028062,31]
[392999578,1762215049639,-272.779969,0.00028062,31]
[392999579,1762215049648,-219.175191,0.00028062,31]
[392999580,1762215049657,-490.523057,0.00028062,31]
[392999581,1762215049667,-174.154366,0.00028062,31]
[392999582,1762215049676,-272.779969,0.00028062,31]
[392999583,1762215049819,-151.0,0.00028062,31]
[392999584,1762215049828,-272.779961,0.00028062,31]
[392999585,1762215049837,-162.768963,0.00028062,31]
[392999586,1762215049848,-162.768963,0.00028062,31]
[392999587,1762215049857,-162.768963,0.00028062,31]
[392999588,1762215049866,-162.768963,0.00028062,31]
[392999589,1762215049875,-157.659146,0.00028062,31]
[392999590,1762215049884,-187.607094,0.00028062,31]
[392999591,1762215049893,-157.659146,0.00028062,31]
[392999592,1762215049902,-187.607094,0.00028062,31]
[392999593,1762215049911,-157.659146,0.00028062,31]
[392999594,1762215049920,-187.607094,0.00028062,31]
[392999595,1762215049931,-157.659142,0.00028062,31]
[392999596,1762215049942,-187.60709,0.00028062,31]
[392999597,1762215049952,-151.0,0.00028062,31]
[392999598,1762215049962,-151.0,0.00028062,31]
[392999599,1762215049971,-633.92097,0.00028062,31]
[392999600,1762215049980,-633.92097,0.00028062,31]
[392999601,1762215049989,-633.92097,0.00028062,31]
[392999602,1762215049998,-633.92097,0.00028062,31]
[392999603,1762215050007,-151.0,0.00028062,15]
[392999604,1762215050016,-151.0,0.00028062,31]
[392999605,1762215050026,-151.0,0.00028062,15]
[392999606,1762215050035,-151.0,0.00028062,31]
[392999607,1762215050045,-211.711258,0.00028062,31]
[392999608,1762215050054,-151.0,0.00028062,31]
[392999609,1762215050063,-151.0,0.00028062,31]
[392999610,1762215050072,-1269.165639,0.00028062,31]
[392999611,1762215050081,-182.839494,0.00028062,31]
[392999612,1762215050090,-162.86,0.00028072,2]
[392999613,1762215050099,-26829.0885046,0.00028072,2]
[392999614,1762215050108,-500.0,0.00028077,7]
[392999615,1762215050117,-500.0,0.00028082,60]
[392999616,1762215050127,-196.23161218,0.00028082,60]
[392999617,1762215050135,-374.0,0.00028082,60]
[392999618,1762215050145,-500.0,0.00028082,2]
[392999619,1762215050154,-750.0,0.00028082,60]
[392999620,1762215050163,-220.63293975,0.00028082,2]
[392999621,1762215050172,-1015.0,0.00028082,14]
[392999622,1762215050183,-500.0,0.00028082,60]
[392999623,1762215050192,-500.0,0.00028082,60]
[392999624,1762215050201,-500.0,0.00028082,60]
[392999625,1762215050211,-2806.66039568,0.00028131,2]
[392999626,1762215050220,-500.0,0.00028145,7]
[392999627,1762215050229,-227.50752535,0.00028219,60]
[392999628,1762215050239,-418.75406581,0.00028219,2]
[392999629,1762215050248,-750.0,0.00028219,60]
[392999630,1762215050257,-1015.0,0.00028219,14]
[392999631,1762215050267,-500.0,0.00028219,60]
[392999632,1762215050276,-500.0,0.00028219,60]
[392999633,1762215050285,-500.0,0.00028219,60]
[392999634,1762215050295,-6000.0,0.00028219,2]
[392999635,1762215050304,-500.0,0.00028221,7]
[392999636,1762215050313,-200.0,0.00028227,2]
[392999637,1762215050322,-910.99,0.00028247,14]
[392999638,1762215050330,-1597.80751929,0.00028256,2]
[392999639,1762215050339,-300.49,0.000283,7]
[392999640,1762215050349,-625.98,0.000283,7]
[392999641,1762215050358,-500.0,0.0002833,7]
[392999642,1762215050367,-1566.4156406,0.00028352,2]
[392999643,1762215050376,-150.0,0.00028355,120]
[392999644,1762215050385,-350.0,0.00028355,120]
[392999645,1762215050394,-750.0,0.00028356,60]
[392999646,1762215050404,-1015.0,0.00028356,14]
[392999647,1762215050413,-500.0,0.00028356,60]
[392999648,1762215050422,-500.0,0.00028356,60]
[392999649,1762215050432,-625.96626849,0.00028356,60]
[392999650,1762215050441,-215.0738,0.00028398,2]
[392999651,1762215050450,-967.10407304,0.00028401,7]
[392999652,1762215050460,-750.0,0.00028493,60]
[392999653,1762215050470,-1015.0,0.00028493,14]
[392999654,1762215050480,-440.64735062,0.00028493,60]
[392999655,1762215050489,-500.0,0.00028493,60]
[392999656,1762215050498,-200.0,0.00028509,2]
[392999657,1762215050507,-20186.5676085,0.0002851,2]
[392999658,1762215050516,-155.95199322,0.00028519,10]
[392999659,1762215050525,-26829.0885046,0.0002852,2]
[392999660,1762215050534,-910.99,0.00028521,14]
[392999661,1762215050543,-151.0,0.0002853,31]
[392999662,1762215050552,-151.0,0.0002853,31]
[392999663,1762215050561,-258.157936,0.0002853,31]
[392999664,1762215050570,-151.0,0.0002853,31]
[392999665,1762215050579,-196.589911,0.0002853,31]
[392999666,1762215050588,-151.0,0.0002853,31]
[392999667,1762215050597,-151.0,0.0002853,31]
[392999668,1762215050606,-151.0,0.0002853,31]
[392999669,1762215050616,-20186.5676085,0.00028576,2]
[392999670,1762215050625,-151.0,0.00028586,31]
[392999671,1762215050634,-151.0,0.00028586,31]
[392999672,1762215050643,-151.0,0.00028586,31]
[392999673,1762215050651,-151.0,0.00028586,31]
[392999674,1762215050661,-151.0,0.00028586,31]
[392999675,1762215050670,-151.0,0.00028586,31]
[392999676,1762215050679,-151.0,0.00028586,14]
[392999677,1762215050688,-164.127754,0.00028586,10]
[392999678,1762215050697,-164.127754,0.00028586,10]
[392999679,1762215050706,-246.070478,0.00028586,31]
[392999680,1762215050718,-164.127754,0.00028586,10]
[392999681,1762215050727,-246.070478,0.00028586,31]
[392999682,1762215050737,-164.127746,0.00028586,10]
[392999683,1762215050746,-199.688269,0.00028586,31]
[392999684,1762215050755,-246.070478,0.00028586,31]
[392999685,1762215050766,-199.688269,0.00028586,31]
[392999686,1762215050775,-246.07048,0.00028586,31]
[392999687,1762215050784,-199.688269,0.00028586,31]
[392999688,1762215050796,-199.688271,0.00028586,31]
[392999689,1762215050805,-151.0,0.00028586,31]
[392999690,1762215050815,-151.0,0.00028586,15]
[392999691,1762215050824,-381.804135,0.00028586,31]
[392999692,1762215050834,-381.804135,0.00028586,31]
[392999693,1762215050843,-381.804135,0.00028586,31]
[392999694,1762215050852,-268.839956,0.00028586,31]
[392999695,1762215050861,-381.804137,0.00028586,31]
[392999696,1762215050870,-268.839956,0.00028586,31]
[392999697,1762215050879,-268.839956,0.00028586,31]
[392999698,1762215050888,-268.839955,0.00028586,31]
[392999699,1762215050897,-337.239195,0.00028586,31]
[392999700,1762215050906,-337.239195,0.00028586,31]
[392999701,1762215050916,-151.0,0.00028586,31]
[392999702,1762215050926,-337.239195,0.00028586,31]
[392999703,1762215050935,-151.0,0.00028586,31]
[392999704,1762215050944,-151.0,0.00028586,31]
[392999705,1762215050954,-337.239203,0.00028586,31]
[392999706,1762215050963,-151.0,0.00028586,31]
[392999707,1762215050972,-151.0,0.00028586,31]
[392999708,1762215050981,-151.0,0.00028586,31]
[392999709,1762215050990,-151.0,0.00028586,31]
[392999710,1762215051000,-152.987122,0.00028586,31]
[392999711,1762215051010,-152.987122,0.00028586,31]
[392999712,1762215051019,-152.987122,0.00028586,31]
[392999713,1762215051029,-152.987126,0.00028586,31]
[392999714,1762215051039,-151.0,0.00028586,31]
[392999715,1762215051049,-166.308992,0.00028586,31]
[392999716,1762215051058,-166.308992,0.00028586,31]
[392999717,1762215051068,-166.308992,0.00028586,31]
[392999718,1762215051078,-166.308988,0.00028586,31]
[392999719,1762215051088,-151.0,0.00028586,31]
[392999720,1762215051097,-151.0,0.00028596,31]
[392999721,1762215051106,-151.0,0.00028596,31]
[392999722,1762215051115,-241.850193,0.00028596,31]
[392999723,1762215051125,-151.0,0.00028596,30]
[392999724,1762215051135,-223.517104,0.00028596,31]
[392999725,1762215051144,-151.0,0.00028596,31]
[392999726,1762215051153,-151.0,0.00028596,31]
[392999727,1762215051162,-151.0,0.00028596,31]
[392999728,1762215051171,-151.0,0.00028596,31]
[392999729,1762215051180,-151.0,0.00028596,31]
[392999730,1762215051189,-151.0,0.00028596,31]
[392999731,1762215051198,-151.0,0.00028596,31]
[392999732,1762215051207,-151.0,0.00028596,31]
[392999733,1762215051217,-300.0,0.00028619,10]
[392999734,1762215051226,-20186.5676085,0.0002862,2]
[392999735,1762215051236,-300.0,0.00028622,10]
[392999736,1762215051245,-26829.0885046,0.00028623,2]
[392999737,1762215051254,-750.0,0.0002863,60]
[392999738,1762215051263,-1015.0,0.0002863,14]
[392999739,1762215051272,-500.0,0.0002863,60]
[392999740,1762215051281,-151.0,0.0002863,31]
[392999741,1762215051290,-151.0,0.0002863,31]
[392999742,1762215051299,-151.0,0.0002863,31]
[392999743,1762215051308,-151.0,0.0002863,31]
[392999744,1762215051317,-151.0,0.0002863,31]
[392999745,1762215051326,-151.0,0.0002863,31]
[392999746,1762215051335,-151.0,0.0002863,31]
[392999747,1762215051344,-276.788832,0.0002863,31]
[392999748,1762215051353,-276.788832,0.0002863,31]
[392999749,1762215051363,-276.788832,0.0002863,31]
[392999750,1762215051372,-276.788836,0.0002863,31]
[392999751,1762215051381,-151.0,0.0002863,31]
[392999752,1762215051390,-151.0,0.0002863,31]
[392999753,1762215051400,-151.0,0.0002863,31]
[392999754,1762215051408,-220.794528,0.0002863,31]
[392999755,1762215051419,-151.0,0.0002863,31]
[392999756,1762215051428,-151.0,0.0002863,31]
[392999757,1762215051437,-151.0,0.0002863,31]
[392999758,1762215051445,-153.237069,0.0002863,31]
[392999759,1762215051454,-161.786431,0.0002863,31]
[392999760,1762215051463,-161.786431,0.0002863,31]
[392999761,1762215051472,-161.786431,0.0002863,31]
[392999762,1762215051482,-161.786427,0.0002863,31]
[392999763,1762215051491,-5000.0,0.00028633,2]
[392999764,1762215051500,-750.0,0.00028767,60]
[392999765,1762215051509,-1015.0,0.00028767,14]
[392999766,1762215051518,-507.02801059,0.00028767,2]
[392999767,1762215051528,-374.19437149,0.00028767,60]
[392999768,1762215051539,-500.0,0.00028788,7]
[392999769,1762215051550,-500.0,0.00028791,7]
[392999770,1762215051559,-1000.0,0.00028791,2]
[392999771,1762215051568,-911.04275655,0.00028795,14]
[392999772,1762215051579,-500.0,0.00028879,7]
[392999773,1762215051588,-159.15453297,0.00028883,2]
[392999774,1762215051599,-151.0,0.00028894,31]
[392999775,1762215051608,-151.0,0.00028894,31]
[392999776,1762215051617,-151.0,0.00028894,31]
[392999777,1762215051626,-151.0,0.00028894,31]
[392999778,1762215051637,-151.0,0.00028894,31]
[392999779,1762215051776,-151.0,0.00028894,31]
[392999780,1762215051787,-300.392269,0.00028894,31]
[392999781,1762215051797,-750.0,0.00028904,60]
[392999782,1762215051806,-1015.0,0.00028904,14]
[392999783,1762215051815,-842.5595597,0.00028954,2]
[392999784,1762215051824,-150.0,0.00028973,5]
[392999785,1762215051833,-300.0,0.00028978,10]
[392999786,1762215051842,-20186.5676085,0.00028979,2]
[392999787,1762215051851,-271.75720946,0.00028988,10]
[392999788,1762215051860,-26829.0885046,0.00028989,2]
[392999789,1762215051870,-1977.55,0.00028998,6]
[392999790,1762215051879,-151.0,0.00028999,31]
[392999791,1762215051892,-151.0,0.00028999,31]
[392999792,1762215051902,-158.255809,0.00028999,31]
[392999793,1762215051911,-151.0,0.00028999,31]
[392999794,1762215051921,-151.0,0.00028999,31]
[392999795,1762215051931,-151.0,0.00028999,31]
[392999796,1762215051940,-151.0,0.00028999,31]
[392999797,1762215051950,-151.0,0.00028999,31]
[392999798,1762215051959,-151.0,0.00028999,31]
[392999799,1762215051969,-286.690597,0.00028999,31]
[392999800,1762215051978,-151.0,0.00028999,31]
[392999801,1762215051988,-151.0,0.00028999,31]
[392999802,1762215051997,-151.0,0.00028999,31]
[392999803,1762215052009,-1041.37635267,0.00029,2]
[392999804,1762215052021,-300.49,0.00029,7]
[392999805,1762215052031,-9999.99,0.00029009,2]
[392999806,1762215052042,-9999.99,0.00029009,2]
[392999807,1762215052052,-150.99,0.00029009,2]
[392999808,1762215052061,-151.0,0.00029009,31]
[392999809,1762215052071,-156.088921,0.00029009,31]
[392999810,1762215052082,-211.065204,0.00029009,31]
[392999811,1762215052092,-152.647846,0.00029009,31]
[392999812,1762215052102,-151.0,0.00029009,31]
[392999813,1762215052112,-500.0,0.00029013,7]
[392999814,1762215052124,-750.0,0.00029041,60]
[392999815,1762215052134,-1015.0,0.00029041,14]
[392999816,1762215052143,-500.0,0.00029056,7]
[392999817,1762215052152,-625.98,0.000291,7]
[392999818,1762215052162,-20186.5676085,0.0002913,2]
[392999819,1762215052171,-6622.75532274,0.0002914,2]
[392999820,1762215052181,-26829.0885046,0.0002915,2]
[392999821,1762215052191,-1196.1843036,0.0002917,2]
[392999822,1762215052200,-750.0,0.00029178,60]
[392999823,1762215052210,-1015.0,0.00029178,14]
[392999824,1762215052221,-500.0,0.00029187,2]
[392999825,1762215052230,-191.96998561,0.00029221,2]
[392999826,1762215052240,-20186.5676085,0.00029236,2]
[392999827,1762215052249,-300.0,0.00029245,10]
[392999828,1762215052259,-666.0,0.00029245,10]
[392999829,1762215052269,-666.0,0.00029245,10]
[392999830,1762215052278,-331.0116582,0.00029246,2]
[392999831,1762215052288,-527.71760314,0.00029246,2]
[392999832,1762215052297,-277.35679052,0.00029246,2]
[392999833,1762215052307,-500.0,0.00029246,2]
[392999834,1762215052316,-500.0,0.00029246,2]
[392999835,1762215052326,-500.0,0.00029246,2]
[392999836,1762215052335,-620.0,0.00029246,2]
[392999837,1762215052345,-500.0,0.00029246,2]
[392999838,1762215052355,-500.0,0.00029246,2]
[392999839,1762215052364,-500.0,0.00029246,2]
[392999840,1762215052374,-500.0,0.00029246,2]
[392999841,1762215052383,-500.0,0.00029246,2]
[392999842,1762215052392,-500.0,0.00029246,2]
[392999843,1762215052402,-500.0,0.00029246,2]
[392999844,1762215052411,-500.0,0.00029246,2]
[392999845,1762215052420,-151.0,0.00029246,2]
[392999846,1762215052430,-322.6107,0.00029246,2]
[392999847,1762215052439,-320.95965356,0.00029246,2]
[392999848,1762215052448,-500.0,0.00029246,2]
[392999849,1762215052458,-500.0,0.00029246,2]
[392999850,1762215052468,-500.0,0.00029246,2]
[392999851,1762215052477,-250.0,0.00029246,2]
[392999852,1762215052487,-500.0,0.00029246,2]
[392999853,1762215052496,-573.33175578,0.00029246,2]
[392999854,1762215052506,-250.0,0.00029246,2]
[392999855,1762215052515,-500.0,0.00029246,2]
[392999856,1762215052524,-250.0,0.00029246,2]
[392999857,1762215052533,-500.0,0.00029246,2]
[392999858,1762215052543,-500.0,0.00029246,2]
[392999859,1762215052552,-250.0,0.00029246,2]
[392999860,1762215052562,-500.0,0.00029246,2]
[392999861,1762215052571,-250.0,0.00029246,2]
[392999862,1762215052582,-500.0,0.00029246,2]
[392999863,1762215052591,-250.0,0.00029246,2]
[392999864,1762215052604,-250.0,0.00029246,2]
[392999865,1762215052624,-500.0,0.00029246,2]
[392999866,1762215052635,-250.0,0.00029246,2]
[392999867,1762215052644,-500.0,0.00029246,2]
[392999868,1762215052653,-250.0,0.00029246,2]
[392999869,1762215052663,-500.0,0.00029246,2]
[392999870,1762215052676,-250.0,0.00029246,2]
[392999871,1762215052702,-500.0,0.00029246,2]
[392999872,1762215052720,-500.0,0.00029246,2]
[392999873,1762215052741,-250.0,0.00029246,2]
[392999874,1762215052760,-500.0,0.00029246,2]
[392999875,1762215052779,-578.20924308,0.00029246,2]
[392999876,1762215052798,-250.0,0.00029246,2]
[392999877,1762215052816,-250.0,0.00029246,2]
[392999878,1762215052835,-250.0,0.00029246,2]
[392999879,1762215052854,-250.0,0.00029246,2]
[392999880,1762215052878,-250.0,0.00029246,2]
[392999881,1762215052895,-250.0,0.00029246,2]
[392999882,1762215052913,-250.0,0.00029246,2]
[392999883,1762215052931,-250.0,0.00029246,2]
[392999884,1762215052951,-250.0,0.00029246,2]
[392999885,1762215052966,-250.0,0.00029246,2]
[392999886,1762215052983,-250.0,0.00029246,2]
[392999887,1762215053001,-250.0,0.00029246,2]
[392999888,1762215053021,-250.0,0.00029246,2]
[392999889,1762215053038,-250.0,0.00029246,2]
[392999890,1762215053057,-250.0,0.00029246,2]
[392999891,1762215053075,-250.0,0.00029246,2]
[392999892,1762215053093,-250.0,0.00029246,2]
[392999893,1762215053111,-250.0,0.00029246,2]
[392999894,1762215053128,-250.0,0.00029246,2]
[392999895,1762215053145,-250.0,0.00029246,2]
[392999896,1762215053162,-250.0,0.00029246,2]
[392999897,1762215053179,-250.0,0.00029246,2]
[392999898,1762215053196,-151.0,0.00029246,2]